Cogmind - Beta 13 @@@ ROGUE MODE // 2024.06.30 @ 00:31:50 Player: harambe Result: Destroyed by Y-45 Defender with Beam Rifle Performance ------------- Evolutions (1) 500 Regions Visited (2) 400 Robots Destroyed (39) 195 Value Destroyed (1048) 1048 Prototype IDs (0) 0 Alien Tech Used (0) 0 Bonus (8) 8 TOTAL SCORE: 2151 Bonus ------- High Alert Combat Kills 8 Cogmind --------- Core Integrity 0/400 Matter 100/300 Energy 121/125 System Corruption 0% Temperature Cool (9) Movement Treading (240) Ox1 Location -9/Materials Parts ------- > --- POWER (1) -------- Light Ion Engine > --- PROPULSION (3) --- Light Treads Wheel > --- UTILITY (3) ------ Heat Sink Large Storage Unit Signal Interpreter > --- WEAPON (2) ------- Light Cannon Light Cannon > --- INVENTORY (15) --- Light Ion Engine Disposable Heat Sink Large Storage Unit Large Matter Pod (20) Propulsion Shielding Small Laser Shotgun Plasma Cutter Peak State ------------ > --- POWER ------------ Ion Engine > --- PROPULSION ------- Aluminum Leg Aluminum Leg Aluminum Leg > --- UTILITY ---------- Large Storage Unit Sensor Array Signal Interpreter > --- WEAPON ----------- Small Laser Particle Gun > --- INVENTORY -------- Light Ion Engine Light Treads Wheel Wheel Heat Sink Disposable Heat Sink Large Storage Unit Large Matter Pod Propulsion Shielding [Rating: 11] Favorites ----------- Power Ion Engine Engine Ion Engine Propulsion Wheel Treads Light Treads Leg Aluminum Leg Wheel Wheel Flight Unit Flight Unit Utility Small Storage Unit Device Sensor Array Storage Small Storage Unit Processor Signal Interpreter Weapon Assault Rifle Energy Gun Medium Laser Ballistic Gun Assault Rifle Ballistic Cannon Light Cannon Launcher Grenade Launcher Build | -11 -10 -9 ------- Run | Yrd Mat Mat Slots Evolved 2 | . . 2 Power . | . . . Propulsion 1 | . . 1 Utility 1 | . . 1 Weapon . | . . . Parts Attached 46 | 6 13 27 Power 7 | 1 3 3 Engine 7 | 1 3 3 Core . | . . . Reactor . | . . . Propulsion 19 | 2 6 11 Treads 5 | 2 2 1 Leg 4 | . . 4 Wheel 8 | . 4 4 Hover . | . . . Flight 2 | . . 2 Utility 6 | 1 2 3 Device 3 | . 2 1 Storage 2 | 1 . 1 Processor 1 | . . 1 Hackware . | . . . Protection . | . . . Artifact . | . . . Weapon 14 | 2 2 10 Energy Gun 5 | 1 1 3 Energy Cannon . | . . . Ballistic Gun 5 | 1 1 3 Ballistic Cannon 2 | . . 2 Launcher 2 | . . 2 Special Weapon . | . . . Impact Weapon . | . . . Slashing Weapon . | . . . Piercing Weapon . | . . . Special Melee Weapon . | . . . Unidentified Prototypes . | . . . Parts Lost 22 | . 3 19 Power 3 | . 1 2 Propulsion 11 | . 1 10 Utility 1 | . . 1 Weapon 7 | . 1 6 Highest Loss Streak 8 | . 3 8 To Critical Strikes . | . . . Average Slot Usage (%) 92 | . 91 93 Engine 11 | . 14 10 Treads 5 | . 15 . Leg 8 | . . 12 Wheel 12 | . 12 12 Device 9 | . 7 10 Storage 12 | . 14 11 Processor 7 | . . 11 Energy Gun 11 | . 13 11 Ballistic Gun 9 | . 14 6 Ballistic Cannon 1 | . . 2 Launcher 1 | . . 1 Naked Turns . | . . . Heaviest Build 30 | 14 15 30 Greatest Support 40 | 40 40 30 Greatest Overweight (x) 4 | 2 . 4 Average Overweight (x) . | . . . Largest Inventory Capacity 15 | 8 8 15 Average Capacity 9 | 7 8 9 Most Carried 14 | 8 8 14 Average Carried 7 | 5 7 7 Final Capacity 15 | 8 8 15 Final Carried 8 | 6 8 8 Class Distribution -------------------- 69% | Mutant 30% | Scavenger-Mutant Dominant Class ---------------- Mutant | -10/Materials Scavenger-Mutant | -9/Materials Resources | -11 -10 -9 ----------- Run | Yrd Mat Mat Matter Collected 807 | 232 221 354 Remotely . | . . . Salvage Created 1281 | . 327 954 Parts 65 | . 14 51 Haulers Intercepted . | . . . Recyclers Shooed 4 | . 3 1 Parts Field Recycled . | . . . Retrieved Matter . | . . . Parts Self-Destructed . | . . . Prevented . | . . . Kills | -11 -10 -9 ------- Run | Yrd Mat Mat Combat Hostiles Destroyed 32 | . 6 26 Guns 22 | . 5 17 Cannons 5 | . . 5 AOE 5 | . 1 4 Classes Destroyed 6 | . 3 3 Worker 3 | . . 3 Recycler 3 | . 1 2 Watcher 1 | . 1 . Swarmer 8 | . . 8 Grunt 21 | . 6 15 Sentry 3 | . . 3 Best Kill Streak 7 | . 6 7 Combat Bots Only 6 | . 2 6 Max Kills in Single Turn 2 | . 1 2 Gunslinging 1 | . . 1 Exploded 2 | . 1 2 Melee . | . . . Uniques/NPCs Destroyed . | . . . Combat | -11 -10 -9 -------- Run | Yrd Mat Mat Hostile Shots Fired 232 | . 28 204 Missed 45 | . 3 42 Damage Taken 2269 | . 395 1874 Core 443 | . 42 401 Absorbed by Shields . | . . . Core Remaining (%) 91 | 100 83 . Volleys Fired 109 | . 26 83 Largest 2 | . 2 2 Hottest 105 | . 70 105 Shots Fired 201 | . 50 151 Gun 151 | . 50 101 Cannon 45 | . . 45 Launcher 5 | . . 5 Special . | . . . Kinetic 114 | . 26 88 Thermal 72 | . 14 58 Explosive 5 | . . 5 Electromagnetic 10 | . 10 . Robot Hit Streak 11 | . 8 11 Robot Miss Streak 12 | . 2 12 Penetration Max . | . . . Secondary Targets 6 | . . 6 Max Gunslinging Chain 1 | . . 1 Shots Hit Robots 134 | . 39 95 Core Hits 68 | . 18 50 Critical Kills . | . . . Critical Parts Destroyed 2 | . 1 1 Critical Strikes 3 | . 1 2 Destroy 2 | . 1 1 Blast 1 | . . 1 Melee Attacks . | . . . Impact . | . . . Slashing . | . . . Piercing . | . . . Sneak Attacks . | . . . Combat Hostiles . | . . . Follow-up Attacks . | . . . Damage Inflicted 2476 | . 579 1897 Guns 1451 | . 497 954 Cannons 495 | . . 495 Explosions 530 | . 82 448 Melee . | . . . Ramming . | . . . Kinetic 1148 | . 247 901 Thermal 783 | . 235 548 Explosive 448 | . . 448 Electromagnetic 97 | . 97 . Impact . | . . . Slashing . | . . . Piercing . | . . . Highest Corruption . | . . . Average Corruption . | . . . Corruption Purged . | . . . Corruption Blocked . | . . . Overload Shots . | . . . Overflow Damage 35 | . . 35 Projectiles 17 | . . 17 Explosions 18 | . . 18 Melee . | . . . Knockbacks 2 | . . 2 Impact . | . . . Kinetic 2 | . . 2 Secondary . | . . . Self-Inflicted Damage 79 | . 55 24 Shots 3 | . 1 2 Rammed . | . . . Targets Rammed . | . . . Kicked . | . . . Crushed . | . . . Highest Temperature 265 | . 150 265 Average Temperature 84 | . 62 91 Received Heat Transfer 882 | . 195 687 Effects 1 | . . 1 Energy Bleed 1 | . . 1 Siege Activations . | . . . Robots Corrupted . | . . . Combat Hostiles . | . . . Parts Fried . | . . . Impact Corruptions . | . . . Robots Melted . | . . . Combat Hostiles . | . . . Parts Melted 1 | . 1 . Heat Transferred 1928 | . 544 1384 Parts Sabotaged . | . . . Parts Stolen . | . . . Parts Stripped . | . . . Power Chain Reactions 1 | . 1 . Alert | -11 -10 -9 ------- Run | Yrd Mat Mat Peak Influence 417 | . 140 417 Initial . | . . . Average 97 | . 39 138 Maximum Alert Level 2 | . . 2 Low Security (%) 78 | 100 100 65 Level 1 21 | . . 34 Level 2 . | . . . Level 3 . | . . . Level 4 . | . . . Level 5 . | . . . High Security . | . . . Max Security . | . . . Squads Dispatched 4 | . 1 3 Investigation 2 | . . 2 Extermination . | . . . Reinforcement 2 | . 1 1 Assault . | . . . Garrison . | . . . Intercept . | . . . Searches Triggered . | . . . Construction Impeded 1 | . . 1 Haulers Reinforced . | . . . Active Scanning Responses . | . . . Cargo Convoy Interrupts . | . . . Stealth | -11 -10 -9 --------- Run | Yrd Mat Mat Distress Signals 5 | . 3 2 Communications Jammed . | . . . Distress Signals . | . . . Times Spotted 51 | . 10 41 Peak Tracking Total 9 | . 4 9 Tactical Retreats 2 | . . 2 Traps | -11 -10 -9 ------- Run | Yrd Mat Mat Traps Triggered 1 | . . 1 Indirectly . | . . . Trap Hack Attempts . | . . . Triggered . | . . . Disarmed . | . . . Reprogrammed . | . . . Reused . | . . . Traps Extracted . | . . . Installed . | . . . Triggered . | . . . Machines | -11 -10 -9 ---------- Run | Yrd Mat Mat Machines Disabled 3 | . . 3 Max in Single Turn 1 | . . 1 Machines Repaired . | . . . Machines Dismantled . | . . . Machines Sabotaged . | . . . Overloaded Fab Kills . | . . . Hacking | -11 -10 -9 --------- Run | Yrd Mat Mat Machines Accessed 3 | . 1 2 Terminals 3 | . 1 2 Fabricators . | . . . Repair Stations . | . . . Recycling Units . | . . . Scanalyzers . | . . . Garrison Access . | . . . Total Hacks 4 | . 1 3 Successful 1 | . . 1 Failed 3 | . 1 2 Catastrophic . | . . . Database Lockouts . | . . . Manual . | . . . Terminals 4 | . 1 3 Fabricators . | . . . Repair Stations . | . . . Recycling Units . | . . . Scanalyzers . | . . . Garrison Access . | . . . Terminal Hacks 1 | . . 1 Locate Traps 1 | . . 1 Fabricator Hacks . | . . . Repair Station Hacks . | . . . Recycling Unit Hacks . | . . . Scanalyzer . | . . . Garrison Access Hacks . | . . . Unauthorized Hacks . | . . . Terminals . | . . . Fabricators . | . . . Repair Stations . | . . . Recycling Units . | . . . Scanalyzers . | . . . Garrison Access . | . . . Data Cores Recovered . | . . . Used . | . . . Hacking Detections 2 | . 1 1 Full Trace Events 1 | . . 1 Feedback Events . | . . . Feedback Blocked . | . . . Robot Schematics Acquired . | . . . Robots Built . | . . . Authchips . | . . . Time . | . . . Total Robot Build Rating . | . . . Part Schematics Acquired . | . . . Parts Built . | . . . Authchips . | . . . Time . | . . . Total Part Build Rating . | . . . Parts Repaired . | . . . Time . | . . . Parts Recycled . | . . . Recycled Matter . | . . . Retrieved Matter . | . . . Retrieved Components . | . . . Parts Scanalyzed . | . . . Part Schematics Acquired . | . . . Parts Damaged . | . . . Bothacking | -11 -10 -9 ------------ Run | Yrd Mat Mat Used RIF Installer . | . . . Robots Hacked . | . . . Non-combat . | . . . Combat . | . . . Robot Hacks Applied . | . . . Relay Couplers Released . | . . . Fabnet Peak Effective % . | . . . Robots Rewired . | . . . Allies Hacked . | . . . Hacks Repelled . | . . . Allies | -11 -10 -9 -------- Run | Yrd Mat Mat Total Allies . | . . . Largest Group . | . . . Highest-Rated Group . | . . . Highest-Rated Ally . | . . . Total Orders . | . . . Ally Attacks . | . . . Total Damage . | . . . Kills . | . . . Allies Corrupted . | . . . Allies Melted . | . . . Intel | -11 -10 -9 ------- Run | Yrd Mat Mat Robot Analysis Total . | . . . Derelict Logs Recovered . | . . . Drone Launches . | . . . Drone Recoveries . | . . . Exploration | -11 -10 -9 ------------- Run | Yrd Mat Mat Turns Passed 1345 | 82 442 821 Spaces Moved 737 | 48 245 444 Core 31 | 17 . 14 Treads 158 | 31 124 3 Legs 192 | . . 192 Wheels 356 | . 121 235 Hover . | . . . Flight . | . . . Fastest Speed 50 | 50 80 80 Average Speed 113 | 136 126 103 Slowest Speed 250 | 160 160 250 Overloaded Moves . | . . . Propulsion Burnouts . | . . . Robots Hopped . | . . . Cave-ins Triggered . | . . . Exploration Rate (%) 24 | 5 32 36 Regions Visited 2 Branch Regions . Pre-discovered Areas . | . . . Known Exits Taken . | . . . Unknown Exits Taken 2 | 1 1 . Scrap Searched . | . . . Spaces Dug . | . . . Terrain Destroyed 26 | . 6 20 Melee . | . . . Projectile . | . . . AOE 26 | . 6 20 Terrain Rammed . | . . . Walls Destroyed . | . . . Machines Disabled . | . . . Actions | -11 -10 -9 --------- Run | Yrd Mat Mat Total 1048 | 65 329 654 Wait 94 | . 20 74 Move 735 | 47 244 444 Hop . | . . . Pick Up 51 | 12 16 23 Fast Attach . | . . . Attach 30 | 6 4 20 Detach . | . . . Swap 16 | . 9 7 Drop 13 | . 10 3 Fire 109 | . 26 83 Melee . | . . . Ram . | . . . Kick . | . . . Crush . | . . . Escape Stasis . | . . . Rewire . | . . . Trap . | . . . Miscellaneous . | . . . Route ------- -11/Scrapyard -10/Materials -9/Materials (discovered 1 exit: *Min) History --------- Turn | Location | Event 7 | -11/Scrapyard | Discovered new exit (range 15) 83 | -11/Scrapyard | Entered Materials 327 | -10/Materials | Build established: Mutant 377 | -10/Materials | Lost 3 parts (1p1n1w) 514 | -10/Materials | Discovered new exit (range 13) 525 | -10/Materials | Entered another Materials area 525 | -9/Materials | Evolved 2 slots: Propulsion x1, Utility x1 896 | -9/Materials | Lost 7 parts (1p4n2w) 972 | -9/Materials | Core integrity fell below 50% 1143 | -9/Materials | Discovered new exit (range 12) 1196 | -9/Materials | Identified exit to Mines 1221 | -9/Materials | Build established: Scavenger-Mutant 1282 | -9/Materials | Core integrity fell below 20% 1324 | -9/Materials | Lost 8 parts (1p5n1u1w) 1346 | -9/Materials | Destroyed by Y-45 Defender with Beam Rifle Last Messages --------------- 01284_ Ion Engine destroyed. 01285_ K-01 Serf collects debris. 01286_ Y-45 Defender destroyed. 01288_ K-01 Serf collects debris. 01293_ Sensor Array destroyed. 01294_ K-01 Serf collects debris. 01295_ K-01 Serf destroyed. 01298_ Destroyed Flight Unit. 01304_ S-10 Pest suffers critical hit (Blast). 01304_ S-10 Pest destroyed. 01310_ R-06 Scavenger sends out distress signal. 01312_ R-06 Scavenger destroyed. 01315_ Acquired 30 matter. 01317_ W-16 Scout knocked back. 01321_ Critical hit (Burn: +37). 01323_ G-34 Mercenary destroyed. 01326_ Y-45 Defender destroyed. 01326_ G-34 Mercenary knocked back. 01330_ G-34 Mercenary destroyed. 01335_ Acquired Wheel. Map ----- +----------------------------------------------------+ | ???????????????????????????????# """#??# """ ?? | | ???????????????????????????????# "#??# ""? "? | | ???????????????????????????????# !"#??# ???? ? | | ???????????????????????????????# > ""#??##?????? | | ?????????????????#############?# |"#?????????? | | ?????????????????# #?# "#?????????? | | ?????????????????# #?# """#?????????? | | ?????????????????# #?## ####?????????? | | ?????????????????# """ """ #??# #????????????? | | ?????????????????# """ """ #??# #????????????? | | ?????????????????# """ """ #??# #????????????? | | ?????????????????# #?## ##???????????? | | ?????????????????######+######## ##+#????????? | | ?????????????????????# % #??????? | | ?????????????????????# #??????? | | ?????????????????????# "" """ #??????? | | ?????????????????????### """ """ #??????? | | ???????????????????????# """ """ ## #??????? | | ????????????????######## "" """ #? #??????? | | ?????????? #?? #??????? | | ?????????????????###### % #?? #??????? | | ??????????????????????#% %% #??? #??????? | | ??????????????????????###+############????#??????? | | ???????????????????????#%**#?????????????????????? | | ???????????????????????#*%*#?????????????????????? | | ???????????????????????#%@%#?????????????????????? | | ???????????????????????#!%[#?????????????????????? | | ???????????????????????#%%m#?????????????????????? | | ???????????????????????#![Y#?????????????????????? | | ???????????????????????#%==+?????????????????????? | | ???????????????????????######????????????????????? | | ?????????????????????????????????????????????????? | | ?????????????????????????????????????????????????? | | ?????????????????????????????????????????????????? | | ?????????????????????????????????????????????????? | | ?????????????????????????????????????????????????? | | ?????????????????????????????????????????????????? | | ?????????????????????????????????????????????????? | | ?????????????????????????????????????????????????? | | ?????????????????????????????????????????????????? | | ?????????????????????????????????????????????????? | | ?????????????????????????????????????????????????? | | ?????????????????????????????????????????????????? | | ?????????????????????????????????????????????????? | | ?????????????????????????????????????????????????? | | ?????????????????????????????????????????????????? | | ?????????????????????????????????????????????????? | | ?????????????????????????????????????????????????? | | ?????????????????????????????????????????????????? | | ?????????????????????????????????????????????????? | +----------------------------------------------------+ Best States ------------- Heat Dissipation 38 Energy Generation 10 Energy Capacity 250 Matter Stores 300 Matter Capacity 300 Sight Range 16 Robot Scan Range 14 Terrain Scan Density 10 Evasion (%) 55 Recoil Reduction 2 Item Schematics ----------------- None Robot Schematics ------------------ None Fabricated ------------ Nothing Alien Tech Used ----------------- None Achievements -------------- None Challenges ------------ None Game ------ Seed StorageDisposableFlightbrick Manual? 0 Play Time 00:29:06 Cumulative 8.4 hours Start 2024.06.29 @ 23:55:12 End 2024.06.30 @ 00:31:50 Sessions 1 Manual Loads 0 Difficulty Rogue Special Mode None Game No. 7 Rogue 7 Adventurer 0 Explorer 0 Win Type - Total 0 Types 0/0/0/0/0/0/0/0/0 Lore% 2 Gallery% 11 Achievement% 7 Wizard Run 0 Options --------- Layout 1 ASCII 0 Keyboard 0 Movement Mouse Keybinds 0 Fullscreen 1 Font 24/X11 Map View 50x35 Zoom Use 0% Tactical HUD 1 Map Filters NONE Filters NONE Steam 1 RUN: fabd0749-62b4-430e-b752-319a0d53cbc4